fUST/lending_fUST_20250210
["ID","MTS","AMOUNT","RATE_DAILY","PERIOD"]
[352603811,1739193042869,-527.53,0.00011506,2]
[352603812,1739193042878,-690.8,0.00011506,2]
[352603813,1739193042887,-500.0,0.00011506,2]
[352603814,1739193042897,-349.9,0.00011506,2]
[352603815,1739193042906,-1150.11,0.00011506,2]
[352603816,1739193042916,-666.05,0.00011506,2]
[352603817,1739193042926,-500.0,0.00011506,2]
[352603818,1739193042935,-575.58,0.00011506,2]
[352603819,1739193042944,-500.0,0.00011506,2]
[352603820,1739193042955,-1218.71,0.00011506,2]
[352603821,1739193042964,-753.11,0.00011506,2]
[352603822,1739193042973,-2548.85,0.00011506,2]
[352603823,1739193042982,-500.0,0.00011506,2]
[352603824,1739193042992,-698.98,0.00011506,2]
[352603825,1739193043001,-876.23,0.00011506,2]
[352603826,1739193043010,-500.0,0.00011506,2]
[352603827,1739193043019,-500.0,0.00011506,2]
[352603828,1739193043029,-6818.49,0.00011506,2]
[352603829,1739193043038,-1440.55,0.00011506,2]
[352603830,1739193043047,-500.0,0.00011506,2]
[352603831,1739193043057,-500.0,0.00011536,2]
[352603832,1739193043066,-500.0,0.00011542,2]
[352603833,1739193043075,-500.0,0.00011542,2]
[352603834,1739193043085,-566.57794621,0.00011542,2]
[352603835,1739193043094,-500.0,0.00011542,2]
[352603836,1739193043103,-38039.3414354,0.00011543,2]
[352603837,1739193043113,-322.14791884,0.00011587,2]
[352603838,1739193043123,-284.52277104,0.00011597,2]
[352603839,1739193043132,-500.0,0.00011597,2]
[352603840,1739193043142,-386.01861773,0.00011603,2]
[352603841,1739193043152,-497.60941393,0.00011603,2]
[352603843,1739193043161,-500.0,0.00011603,2]
[352603845,1739193043171,-500.0,0.00011616,2]
[352603846,1739193043180,-500.0,0.00011618,2]
[352603847,1739193043190,-500.0,0.00011618,2]
[352603848,1739193043200,-626.10567238,0.00011624,2]
[352603849,1739193043209,-500.0,0.00011624,2]
[352603851,1739193043219,-500.0,0.00011624,2]
[352603853,1739193043228,-500.86851527,0.00011624,2]
[352603855,1739193043237,-278.54427922,0.00011624,2]
[352603857,1739193043246,-500.0,0.00011624,2]
[352603859,1739193043257,-632.31587076,0.00011624,2]
[352603860,1739193043266,-500.0,0.00011624,2]
[352603861,1739193043275,-500.0,0.00011643,2]
[352603862,1739193043285,-384.97481335,0.00011643,2]
[352603864,1739193043294,-568.61,0.00011643,2]
[352603865,1739193043303,-500.0,0.00011643,2]
[352603866,1739193043313,-500.0,0.00011643,2]
[352603867,1739193043322,-500.0,0.00011643,2]
[352603870,1739193043331,-500.0,0.00011643,2]
[352603871,1739193043341,-452.30555883,0.00011643,2]
[352603872,1739193043350,-500.0,0.00011643,2]
[352603873,1739193043361,-500.0,0.00011643,2]
[352603874,1739193043371,-500.0,0.00011643,2]
[352603875,1739193043380,-500.0,0.00011643,2]
[352603876,1739193043390,-500.0,0.00011643,2]
[352603877,1739193043399,-500.0,0.00011643,2]
[352603878,1739193043409,-500.0,0.00011643,2]
[352603879,1739193043418,-500.0,0.00011643,2]
[352603880,1739193043428,-500.0,0.00011643,2]
[352603881,1739193043437,-500.0,0.00011643,2]
[352603882,1739193043447,-500.0,0.00011643,2]
[352603883,1739193043456,-500.0,0.00011643,2]
[352603884,1739193043466,-500.0,0.00011643,2]
[352603885,1739193043475,-594.45,0.00011643,2]
[352603886,1739193043485,-500.0,0.00011643,2]
[352603887,1739193043494,-500.0,0.00011643,2]
[352603888,1739193043504,-500.0,0.00011643,2]
[352603889,1739193043514,-1386.89,0.00011643,2]
[352603890,1739193043524,-500.0,0.00011643,2]
[352603891,1739193043533,-1290.71,0.00011643,2]
[352603892,1739193043542,-2137.44,0.00011643,2]
[352603893,1739193043552,-1023.38,0.00011643,2]
[352603894,1739193043563,-1054.8,0.00011643,2]
[352603895,1739193043573,-500.0,0.00011643,2]
[352603896,1739193043582,-500.0,0.00011643,2]
[352603897,1739193043592,-500.0,0.00011643,2]
[352603898,1739193043603,-500.0,0.00011643,2]
[352603899,1739193043612,-564.01,0.00011643,2]
[352603900,1739193043623,-500.0,0.00011643,2]
[352603901,1739193043633,-13067.2,0.00011643,2]
[352603902,1739193043643,-500.0,0.00011643,2]
[352603903,1739193043652,-1040.35,0.00011643,2]
[352603904,1739193043664,-500.0,0.00011643,2]
[352603905,1739193043674,-648.58,0.00011643,2]
[352603906,1739193043684,-5282.16,0.00011643,2]
[352603907,1739193043693,-500.0,0.00011643,2]
[352603908,1739193043704,-500.0,0.00011643,2]
[352603909,1739193043713,-500.0,0.00011643,2]
[352603910,1739193043722,-527.53,0.00011643,2]
[352603911,1739193043732,-690.8,0.00011643,2]
[352603912,1739193043742,-500.0,0.00011643,2]
[352603913,1739193043751,-1150.11,0.00011643,2]
[352603914,1739193043760,-666.05,0.00011643,2]
[352603915,1739193043770,-409.48,0.00011643,2]
[352603916,1739193043779,-575.58,0.00011643,2]
[352603917,1739193043793,-500.0,0.00011643,2]
[352603918,1739193043803,-1218.71,0.00011643,2]
[352603919,1739193043812,-753.11,0.00011643,2]
[352603920,1739193043823,-2548.85,0.00011643,2]
[352603921,1739193043833,-500.0,0.00011643,2]
[352603922,1739193043843,-698.98,0.00011643,2]
[352603923,1739193043853,-876.23,0.00011643,2]
[352603924,1739193043867,-219.49418036,0.00011643,2]
[352603925,1739193043877,-282.39576636,0.00011643,2]
[352603926,1739193043887,-6818.49,0.00011643,2]
[352603927,1739193043897,-1440.55,0.00011643,2]
[352603928,1739193043906,-500.0,0.00011643,2]
[352603929,1739193043916,-755.07435675,0.00011678,2]
[352603930,1739193043926,-294.90166422,0.00011693,2]
[352603931,1739193043936,-110436.04458559,0.000117,2]
[352603932,1739193043946,-755.07435675,0.00011778,2]
[352603933,1739193043955,-158.25,0.0001178,2]
[352603934,1739193043965,-568.61,0.0001178,2]
[352603935,1739193043975,-500.0,0.0001178,2]
[352603936,1739193043984,-500.0,0.0001178,2]
[352603937,1739193043993,-500.0,0.0001178,2]
[352603938,1739193044003,-500.0,0.0001178,2]
[352603939,1739193044012,-500.0,0.0001178,2]
[352603940,1739193044022,-500.0,0.0001178,2]
[352603941,1739193044031,-500.0,0.0001178,2]
[352603942,1739193044041,-500.0,0.0001178,2]
[352603943,1739193044051,-500.0,0.0001178,2]
[352603944,1739193044061,-500.0,0.0001178,2]
[352603945,1739193044070,-500.0,0.0001178,2]
[352603946,1739193044080,-500.0,0.0001178,2]
[352603947,1739193044090,-500.0,0.0001178,2]
[352603948,1739193044100,-500.0,0.0001178,2]
[352603949,1739193044109,-500.0,0.0001178,2]
[352603950,1739193044120,-500.0,0.0001178,2]
[352603951,1739193044130,-500.0,0.0001178,2]
[352603952,1739193044140,-594.45,0.0001178,2]
[352603953,1739193044150,-500.0,0.0001178,2]
[352603954,1739193044159,-500.0,0.0001178,2]
[352603955,1739193044169,-500.0,0.0001178,2]
[352603956,1739193044179,-1386.89,0.0001178,2]
[352603957,1739193044189,-504.28,0.0001178,2]
[352603958,1739193044198,-1290.71,0.0001178,2]
[352603959,1739193044208,-2137.44,0.0001178,2]
[352603960,1739193044218,-1023.38,0.0001178,2]
[352603961,1739193044227,-1054.8,0.0001178,2]
[352603962,1739193044237,-500.0,0.0001178,2]
[352603963,1739193044247,-422.36044086,0.0001178,2]
[352603964,1739193044257,-500.0,0.0001178,2]
[352603965,1739193044267,-500.0,0.0001178,2]
[352603966,1739193044278,-564.01,0.0001178,2]
[352603967,1739193044287,-500.0,0.0001178,2]
[352603968,1739193044297,-13067.2,0.0001178,2]
[352603969,1739193044413,-500.0,0.0001178,2]
[352603970,1739193044423,-1040.35,0.0001178,2]
[352603971,1739193044433,-500.0,0.0001178,2]
[352603972,1739193044442,-648.58,0.0001178,2]
[352603973,1739193044452,-5282.16,0.0001178,2]
[352603974,1739193044462,-500.0,0.0001178,2]
[352603975,1739193044471,-500.0,0.0001178,2]
[352603976,1739193044481,-500.0,0.0001178,2]
[352603977,1739193044491,-527.53,0.0001178,2]
[352603978,1739193044501,-690.8,0.0001178,2]
[352603979,1739193044510,-500.0,0.0001178,2]
[352603980,1739193044520,-1150.11,0.0001178,2]
[352603981,1739193044529,-666.05,0.0001178,2]
[352603982,1739193044539,-575.58,0.0001178,2]
[352603983,1739193044548,-500.0,0.0001178,2]
[352603984,1739193044558,-1218.71,0.0001178,2]
[352603985,1739193044569,-753.11,0.0001178,2]
[352603986,1739193044579,-2548.85,0.0001178,2]
[352603987,1739193044590,-500.0,0.0001178,2]
[352603988,1739193044601,-698.98,0.0001178,2]
[352603989,1739193044611,-876.23,0.0001178,2]
[352603990,1739193044623,-6818.49,0.0001178,2]
[352603991,1739193044633,-1440.55,0.0001178,2]
[352603992,1739193044643,-500.0,0.0001178,2]
[352603993,1739193044653,-755.07435675,0.00011878,2]
[352603994,1739193044663,-568.61,0.00011917,2]
[352603995,1739193044673,-500.0,0.00011917,2]
[352603996,1739193044683,-500.0,0.00011917,2]
[352603997,1739193044693,-500.0,0.00011917,2]
[352603998,1739193044702,-500.0,0.00011917,2]
[352603999,1739193044713,-500.0,0.00011917,2]
[352604000,1739193044723,-500.0,0.00011917,2]
[352604001,1739193044733,-500.0,0.00011917,2]
[352604002,1739193044742,-500.0,0.00011917,2]
[352604003,1739193044752,-500.0,0.00011917,2]
[352604004,1739193044763,-446.94,0.00011917,2]
[352604005,1739193044773,-500.0,0.00011917,2]
[352604006,1739193044784,-503.38,0.00011917,2]
[352604007,1739193044797,-500.0,0.00011917,2]
[352604008,1739193044807,-500.0,0.00011917,2]
[352604009,1739193044817,-500.0,0.00011917,2]
[352604010,1739193044828,-500.0,0.00011917,2]
[352604011,1739193044838,-500.0,0.00011917,2]
[352604012,1739193044847,-594.45,0.00011917,2]
[352604013,1739193044856,-500.0,0.00011917,2]
[352604014,1739193044867,-608.80907979,0.00011917,2]
[352604015,1739193044876,-500.0,0.00011917,2]
[352604016,1739193044886,-1386.89,0.00011917,2]
[352604017,1739193044896,-1290.71,0.00011917,2]
[352604018,1739193044906,-2137.44,0.00011917,2]
[352604019,1739193044916,-1023.38,0.00011917,2]
[352604020,1739193044926,-1054.8,0.00011917,2]
[352604021,1739193044935,-500.0,0.00011917,2]
[352604022,1739193044945,-500.0,0.00011917,2]
[352604023,1739193044955,-500.0,0.00011917,2]
[352604024,1739193044965,-564.01,0.00011917,2]
[352604025,1739193044975,-500.0,0.00011917,2]
[352604026,1739193044985,-13067.2,0.00011917,2]
[352604027,1739193044995,-500.0,0.00011917,2]
[352604028,1739193045005,-1040.35,0.00011917,2]
[352604029,1739193045015,-500.0,0.00011917,2]
[352604030,1739193045025,-648.58,0.00011917,2]
[352604031,1739193045035,-5282.16,0.00011917,2]
[352604032,1739193045046,-500.0,0.00011917,2]
[352604033,1739193045056,-500.0,0.00011917,2]
[352604034,1739193045067,-500.0,0.00011917,2]
[352604035,1739193045078,-527.53,0.00011917,2]
[352604036,1739193045087,-690.8,0.00011917,2]
[352604037,1739193045098,-500.0,0.00011917,2]
[352604038,1739193045108,-1150.11,0.00011917,2]
[352604039,1739193045120,-666.05,0.00011917,2]
[352604040,1739193045130,-575.58,0.00011917,2]
[352604041,1739193045141,-500.0,0.00011917,2]
[352604042,1739193045151,-1218.71,0.00011917,2]
[352604043,1739193045162,-753.11,0.00011917,2]
[352604044,1739193045172,-2548.85,0.00011917,2]
[352604045,1739193045183,-500.0,0.00011917,2]
[352604046,1739193045193,-698.98,0.00011917,2]
[352604047,1739193045202,-876.23,0.00011917,2]
[352604048,1739193045213,-6818.49,0.00011917,2]
[352604049,1739193045224,-1440.55,0.00011917,2]
[352604050,1739193045234,-194.020004,0.00011917,2]
[352604051,1739193045244,-755.07435675,0.00011978,2]
[352604052,1739193045254,-164.54647944,0.00011988,2]
[352604053,1739193045267,-568.61,0.00012054,2]
[352604054,1739193045277,-500.0,0.00012054,2]
[352604055,1739193045288,-500.0,0.00012054,2]
[352604056,1739193045299,-500.0,0.00012054,2]
[352604057,1739193045309,-500.0,0.00012054,2]
[352604058,1739193045320,-500.0,0.00012054,2]
[352604059,1739193045330,-500.0,0.00012054,2]
[352604060,1739193045341,-174.79998487,0.00012054,2]
[352604061,1739193045353,-176.36,0.00012054,2]
[352604062,1739193045367,-500.0,0.00012054,2]
[352604063,1739193045377,-500.0,0.00012054,2]
[352604064,1739193045387,-500.0,0.00012054,2]
[352604065,1739193045398,-500.0,0.00012054,2]
[352604066,1739193045408,-500.0,0.00012054,2]
[352604067,1739193045418,-500.0,0.00012054,2]
[352604068,1739193045429,-500.0,0.00012054,2]
[352604069,1739193045439,-594.45,0.00012054,2]
[352604070,1739193045449,-626.11,0.00012054,2]
[352604071,1739193045460,-500.0,0.00012054,2]
[352604072,1739193045470,-1386.89,0.00012054,2]
[352604073,1739193045480,-1290.71,0.00012054,2]
[352604074,1739193045490,-2137.44,0.00012054,2]
[352604075,1739193045501,-1023.38,0.00012054,2]
[352604076,1739193045511,-1054.8,0.00012054,2]
[352604077,1739193045520,-500.0,0.00012054,2]
[352604078,1739193045531,-312.6197499,0.00012054,2]
[352604079,1739193045541,-500.0,0.00012054,2]
[352604080,1739193045551,-564.01,0.00012054,2]
[352604081,1739193045561,-500.0,0.00012054,2]
[352604082,1739193045570,-13067.2,0.00012054,2]
[352604083,1739193045580,-500.0,0.00012054,2]
[352604084,1739193045591,-1040.35,0.00012054,2]
[352604085,1739193045601,-500.0,0.00012054,2]
[352604086,1739193045611,-648.58,0.00012054,2]
[352604087,1739193045621,-5282.16,0.00012054,2]
[352604088,1739193045631,-500.0,0.00012054,2]
[352604089,1739193045640,-500.0,0.00012054,2]
[352604090,1739193045650,-500.0,0.00012054,2]
[352604091,1739193045661,-527.53,0.00012054,2]
[352604092,1739193045671,-690.8,0.00012054,2]
[352604093,1739193045682,-500.0,0.00012054,2]
[352604094,1739193045692,-1150.11,0.00012054,2]
[352604095,1739193045702,-666.05,0.00012054,2]
[352604096,1739193045711,-575.58,0.00012054,2]
[352604097,1739193045721,-532.59101627,0.00012054,2]
[352604098,1739193045731,-1218.71,0.00012054,2]
[352604099,1739193045740,-753.11,0.00012054,2]
[352604100,1739193045751,-2548.85,0.00012054,2]
[352604101,1739193045761,-500.0,0.00012054,2]
[352604102,1739193045771,-698.98,0.00012054,2]
[352604103,1739193045781,-876.23,0.00012054,2]
[352604104,1739193045794,-6818.49,0.00012054,2]
[352604105,1739193045804,-1440.55,0.00012054,2]
[352604106,1739193045814,-755.07435675,0.00012078,2]
[352604107,1739193045823,-263.1710528,0.00012082,2]
[352604108,1739193045834,-1000.0,0.00012145,2]
[352604109,1739193045843,-502.27251224,0.00012151,2]
[352604110,1739193045853,-531.26523494,0.00012166,2]
[352604111,1739193045864,-516.71114806,0.00012166,2]
[352604112,1739193045874,-1000.0,0.00012171,2]
[352604113,1739193045884,-1000.59239481,0.00012171,2]
[352604114,1739193045893,-755.07435675,0.00012178,2]
[352604115,1739193045903,-568.61,0.00012191,2]
[352604116,1739193045912,-500.0,0.00012191,2]
[352604117,1739193045921,-500.0,0.00012191,2]
[352604118,1739193045930,-328.43019354,0.00012191,2]
[352604119,1739193045940,-500.0,0.00012191,2]
[352604120,1739193045950,-500.0,0.00012191,2]
[352604121,1739193045960,-500.0,0.00012191,2]
[352604122,1739193045969,-366.05380432,0.00012191,2]
[352604127,1739193046112,-133.94619568,0.00012191,2]
[352604129,1739193046122,-500.0,0.00012191,2]
[352604131,1739193046132,-500.0,0.00012191,2]
[352604133,1739193046142,-500.0,0.00012191,2]
[352604135,1739193046153,-500.0,0.00012191,2]
[352604136,1739193046163,-500.0,0.00012191,2]
[352604138,1739193046174,-594.45,0.00012191,2]
[352604140,1739193046184,-500.0,0.00012191,2]
[352604142,1739193046194,-1386.89,0.00012191,2]
[352604143,1739193046204,-1290.71,0.00012191,2]
[352604145,1739193046214,-2137.44,0.00012191,2]
[352604147,1739193046224,-1023.38,0.00012191,2]
[352604149,1739193046235,-1054.8,0.00012191,2]
[352604151,1739193046245,-500.0,0.00012191,2]
[352604153,1739193046255,-500.0,0.00012191,2]
[352604155,1739193046265,-564.01,0.00012191,2]
[352604157,1739193046275,-500.0,0.00012191,2]
[352604159,1739193046285,-13067.2,0.00012191,2]
[352604161,1739193046295,-500.0,0.00012191,2]
[352604162,1739193046305,-1040.35,0.00012191,2]
[352604163,1739193046315,-500.0,0.00012191,2]
[352604164,1739193046324,-648.58,0.00012191,2]
[352604165,1739193046334,-5282.16,0.00012191,2]
[352604166,1739193046344,-500.0,0.00012191,2]
[352604167,1739193046353,-500.0,0.00012191,2]
[352604168,1739193046362,-500.0,0.00012191,2]
[352604169,1739193046372,-527.53,0.00012191,2]
[352604170,1739193046382,-690.8,0.00012191,2]
[352604171,1739193046392,-500.0,0.00012191,2]
[352604172,1739193046401,-1150.11,0.00012191,2]
[352604173,1739193046410,-666.05,0.00012191,2]
[352604174,1739193046419,-575.58,0.00012191,2]
[352604175,1739193046428,-1218.71,0.00012191,2]
[352604176,1739193046437,-753.11,0.00012191,2]
[352604177,1739193046447,-2548.85,0.00012191,2]
[352604178,1739193046457,-500.0,0.00012191,2]
[352604179,1739193046466,-698.98,0.00012191,2]
[352604180,1739193046476,-876.23,0.00012191,2]
[352604181,1739193046486,-6818.49,0.00012191,2]
[352604182,1739193046496,-1440.55,0.00012191,2]
[352604183,1739193046505,-755.07435675,0.00012278,2]
[352604184,1739193046514,-568.61,0.00012328,2]
[352604185,1739193046523,-500.0,0.00012328,2]
[352604186,1739193046533,-500.0,0.00012328,2]
[352604187,1739193046543,-500.0,0.00012328,2]
[352604189,1739193046553,-500.0,0.00012328,2]
[352604191,1739193046563,-175.46,0.00012328,2]
[352604192,1739193046574,-500.0,0.00012328,2]
[352604193,1739193046584,-500.0,0.00012328,2]
[352604194,1739193046596,-500.0,0.00012328,2]
[352604195,1739193046606,-500.0,0.00012328,2]
[352604196,1739193046615,-500.0,0.00012328,2]
[352604197,1739193046625,-500.0,0.00012328,2]
[352604198,1739193046635,-594.45,0.00012328,2]
[352604199,1739193046645,-500.0,0.00012328,2]
[352604200,1739193046655,-1386.89,0.00012328,2]
[352604201,1739193046666,-1290.71,0.00012328,2]
[352604202,1739193046677,-2137.44,0.00012328,2]
[352604203,1739193046687,-1023.38,0.00012328,2]
[352604204,1739193046698,-1054.8,0.00012328,2]
[352604205,1739193046709,-500.0,0.00012328,2]
[352604206,1739193046720,-564.01,0.00012328,2]
[352604208,1739193046834,-500.0,0.00012328,2]
[352604209,1739193046845,-13067.2,0.00012328,2]
[352604210,1739193046855,-500.0,0.00012328,2]
[352604211,1739193046865,-1040.35,0.00012328,2]
[352604212,1739193046877,-500.0,0.00012328,2]
[352604213,1739193046888,-648.58,0.00012328,2]
[352604214,1739193046899,-5282.16,0.00012328,2]
[352604215,1739193046910,-500.0,0.00012328,2]
[352604216,1739193046920,-500.0,0.00012328,2]
[352604217,1739193046930,-500.0,0.00012328,2]
[352604218,1739193046940,-527.53,0.00012328,2]
[352604219,1739193046951,-690.8,0.00012328,2]
[352604220,1739193046961,-500.0,0.00012328,2]
[352604221,1739193046971,-1150.11,0.00012328,2]
[352604222,1739193046982,-666.05,0.00012328,2]
[352604223,1739193046992,-575.58,0.00012328,2]
[352604224,1739193047001,-1218.71,0.00012328,2]
[352604225,1739193047011,-753.11,0.00012328,2]
[352604226,1739193047021,-2548.85,0.00012328,2]
[352604227,1739193047031,-500.0,0.00012328,2]
[352604228,1739193047043,-698.98,0.00012328,2]
[352604229,1739193047054,-876.23,0.00012328,2]
[352604230,1739193047065,-151.0,0.00012328,2]
[352604231,1739193047075,-6818.49,0.00012328,2]
[352604232,1739193047086,-1440.55,0.00012328,2]
[352604233,1739193047095,-755.07435675,0.00012378,2]
[352604234,1739193047105,-5077.16345964,0.00012465,5]
[352604235,1739193047116,-568.61,0.00012465,2]
[352604236,1739193047127,-500.0,0.00012465,2]
[352604237,1739193047138,-500.0,0.00012465,2]
[352604238,1739193047148,-500.0,0.00012465,2]
[352604239,1739193047159,-500.0,0.00012465,2]
[352604240,1739193047168,-500.0,0.00012465,2]
[352604241,1739193047179,-500.0,0.00012465,2]
[352604242,1739193047190,-500.0,0.00012465,2]
[352604243,1739193047201,-273.31,0.00012465,2]
[352604244,1739193047211,-500.0,0.00012465,2]
[352604245,1739193047221,-153.64,0.00012465,2]
[352604246,1739193047232,-594.45,0.00012465,2]
[352604247,1739193047242,-500.0,0.00012465,2]
[352604248,1739193047252,-1386.89,0.00012465,2]
[352604249,1739193047262,-1290.71,0.00012465,2]
[352604250,1739193047272,-2137.44,0.00012465,2]
[352604251,1739193047283,-1023.38,0.00012465,2]
[352604252,1739193047293,-1054.8,0.00012465,2]
[352604253,1739193047303,-500.0,0.00012465,2]
[352604254,1739193047313,-564.01,0.00012465,2]
[352604255,1739193047323,-500.0,0.00012465,2]
[352604256,1739193047333,-13067.2,0.00012465,2]
[352604257,1739193047343,-500.0,0.00012465,2]
[352604258,1739193047354,-1040.35,0.00012465,2]
[352604259,1739193047365,-500.0,0.00012465,2]
[352604260,1739193047376,-648.58,0.00012465,2]
[352604261,1739193047387,-5282.16,0.00012465,2]
[352604262,1739193047396,-500.0,0.00012465,2]
[352604263,1739193047406,-500.0,0.00012465,2]
[352604264,1739193047415,-500.0,0.00012465,2]
[352604265,1739193047426,-527.53,0.00012465,2]
[352604266,1739193047436,-690.8,0.00012465,2]
[352604267,1739193047446,-500.0,0.00012465,2]
[352604268,1739193047455,-1150.11,0.00012465,2]
[352604269,1739193047465,-666.05,0.00012465,2]
[352604270,1739193047475,-575.58,0.00012465,2]
[352604271,1739193047484,-1218.71,0.00012465,2]
[352604272,1739193047494,-753.11,0.00012465,2]
[352604273,1739193047503,-2548.85,0.00012465,2]
[352604274,1739193047513,-500.0,0.00012465,2]
[352604275,1739193047522,-698.98,0.00012465,2]
[352604276,1739193047531,-876.23,0.00012465,2]
[352604277,1739193047541,-6818.49,0.00012465,2]
[352604278,1739193047551,-1440.55,0.00012465,2]
[352604279,1739193047561,-755.07435675,0.00012478,2]
[352604280,1739193047571,-151.0,0.00012478,2]
[352604281,1739193047581,-13074.96087049,0.00012535,2]
[352604282,1739193047592,-338.831,0.00012548,2]
[352604283,1739193047601,-164.54647944,0.00012571,2]
[352604284,1739193047610,-755.07435675,0.00012578,2]
[352604285,1739193047620,-568.61,0.00012602,2]
[352604286,1739193047630,-500.0,0.00012602,2]
[352604287,1739193047639,-500.0,0.00012602,2]
[352604288,1739193047649,-500.0,0.00012602,2]
[352604289,1739193047658,-500.0,0.00012602,2]
[352604290,1739193047667,-500.0,0.00012602,2]
[352604291,1739193047676,-500.0,0.00012602,2]
[352604292,1739193047686,-500.0,0.00012602,2]
[352604293,1739193047695,-500.0,0.00012602,2]
[352604294,1739193047705,-594.45,0.00012602,2]
[352604295,1739193047715,-500.0,0.00012602,2]
[352604296,1739193047724,-1386.89,0.00012602,2]
[352604297,1739193047734,-1290.71,0.00012602,2]
[352604298,1739193047744,-2137.44,0.00012602,2]
[352604299,1739193047755,-1023.38,0.00012602,2]
[352604300,1739193047765,-1054.8,0.00012602,2]
[352604301,1739193047775,-500.0,0.00012602,2]
[352604302,1739193047784,-564.01,0.00012602,2]
[352604303,1739193047797,-500.0,0.00012602,2]
[352604304,1739193047807,-13067.2,0.00012602,2]
[352604305,1739193047816,-500.0,0.00012602,2]
[352604306,1739193047826,-1040.35,0.00012602,2]
[352604307,1739193047837,-500.0,0.00012602,2]
[352604308,1739193047847,-648.58,0.00012602,2]
[352604309,1739193047858,-5282.16,0.00012602,2]
[352604310,1739193047868,-500.0,0.00012602,2]
[352604311,1739193047878,-500.0,0.00012602,2]
[352604312,1739193047889,-527.53,0.00012602,2]
[352604313,1739193047900,-690.8,0.00012602,2]
[352604314,1739193047910,-500.0,0.00012602,2]
[352604315,1739193047920,-1150.11,0.00012602,2]
[352604316,1739193047928,-666.05,0.00012602,2]
[352604317,1739193047937,-575.58,0.00012602,2]
[352604318,1739193047945,-1218.71,0.00012602,2]
[352604319,1739193047953,-753.11,0.00012602,2]
[352604320,1739193047961,-2548.85,0.00012602,2]
[352604321,1739193047971,-500.0,0.00012602,2]
[352604322,1739193047982,-698.98,0.00012602,2]
[352604323,1739193047992,-876.23,0.00012602,2]
[352604324,1739193048003,-6818.49,0.00012602,2]
[352604325,1739193048013,-1440.55,0.00012602,2]
[352604326,1739193048024,-755.07435675,0.00012678,2]
[352604327,1739193048034,-568.61,0.00012739,2]
[352604328,1739193048044,-500.0,0.00012739,2]
[352604329,1739193048055,-302.5,0.00012739,2]
[352604330,1739193048065,-500.0,0.00012739,2]
[352604331,1739193048075,-500.0,0.00012739,2]
[352604332,1739193048086,-500.0,0.00012739,2]
[352604333,1739193048097,-500.0,0.00012739,2]
[352604334,1739193048108,-500.0,0.00012739,2]
[352604335,1739193048118,-500.0,0.00012739,2]
[352604336,1739193048130,-594.45,0.00012739,2]
[352604337,1739193048139,-500.0,0.00012739,2]
[352604338,1739193048149,-1386.89,0.00012739,2]
[352604339,1739193048161,-1290.71,0.00012739,2]
[352604340,1739193048170,-2137.44,0.00012739,2]
[352604341,1739193048181,-1023.38,0.00012739,2]
[352604342,1739193048191,-1054.8,0.00012739,2]
[352604343,1739193048201,-572.18,0.00012739,2]